fUST/lending_fUST_20250723
["ID","MTS","AMOUNT","RATE_DAILY","PERIOD"]
[374273378,1753262845357,-1889.52935804,0.00019451,2]
[374273379,1753262845379,-1889.52935804,0.00019451,2]
[374273380,1753262845400,-1889.52935804,0.00019451,2]
[374273381,1753262845422,-1889.52935804,0.00019451,2]
[374273382,1753262845443,-460.0,0.00019451,2]
[374273383,1753262845464,-316.06905276,0.00019451,2]
[374273384,1753262845484,-460.0,0.00019451,2]
[374273385,1753262845505,-1850.62728302,0.00019451,2]
[374273386,1753262845528,-1850.62728302,0.00019451,2]
[374273387,1753262845552,-1850.62728302,0.00019451,2]
[374273388,1753262845573,-1850.62728302,0.00019451,2]
[374273389,1753262845596,-1850.62728302,0.00019451,2]
[374273390,1753262845617,-1850.62728302,0.00019451,2]
[374273391,1753262845639,-1850.62728302,0.00019451,2]
[374273392,1753262845661,-1850.62728302,0.00019451,2]
[374273393,1753262845684,-1850.62728302,0.00019451,2]
[374273394,1753262845705,-1850.62728302,0.00019451,2]
[374273395,1753262845728,-1850.62728302,0.00019451,2]
[374273396,1753262845748,-1850.62728302,0.00019451,2]
[374273397,1753262845770,-1850.62728302,0.00019451,2]
[374273398,1753262845791,-1850.62728302,0.00019451,2]
[374273399,1753262845813,-1850.62728302,0.00019451,2]
[374273400,1753262845835,-1850.62728302,0.00019451,2]
[374273401,1753262845857,-1850.62728302,0.00019451,2]
[374273402,1753262845879,-1850.62728302,0.00019451,2]
[374273403,1753262845901,-1850.62728302,0.00019451,2]
[374273404,1753262845924,-1046.22639544,0.00019451,2]
[374273409,1753263009616,150.0,0.00016672,2]
[374273481,1753263031899,-154.38,0.00018187,2]
[374273484,1753263031909,-211.62579946,0.000189,2]
[374273486,1753263031918,-300.0,0.00019177,2]
[374273488,1753263031929,-460.0,0.00019178,2]
[374273490,1753263031938,-460.0,0.00019178,2]
[374273492,1753263031947,-918.54,0.00019178,2]
[374273493,1753263031956,-460.0,0.00019178,2]
[374273494,1753263031966,-460.0,0.00019178,2]
[374273495,1753263031975,-381.26,0.00019178,2]
[374273496,1753263031985,-274.15213862,0.00019178,2]
[374273497,1753263031996,-185.84786138,0.00019178,2]
[374273498,1753263032005,-1445.62,0.00019178,2]
[374273499,1753263032015,-460.0,0.00019178,2]
[374273500,1753263032024,-460.0,0.00019178,2]
[374273501,1753263032033,-460.0,0.00019178,2]
[374273502,1753263032042,-460.0,0.00019178,2]
[374273503,1753263032052,-460.0,0.00019178,2]
[374273504,1753263032061,-460.0,0.00019178,2]
[374273505,1753263032071,-460.0,0.00019178,2]
[374273506,1753263032080,-460.0,0.00019178,2]
[374273507,1753263032090,-464.88,0.00019178,2]
[374273508,1753263032099,-460.0,0.00019178,2]
[374273509,1753263032108,-460.0,0.00019178,2]
[374273510,1753263032118,-460.0,0.00019178,2]
[374273511,1753263032127,-460.0,0.00019178,2]
[374273512,1753263032136,-460.0,0.00019178,2]
[374273513,1753263032146,-460.0,0.00019178,2]
[374273514,1753263032155,-460.0,0.00019178,2]
[374273515,1753263032164,-460.0,0.00019178,2]
[374273516,1753263032174,-1423.3,0.00019178,2]
[374273517,1753263032186,-460.0,0.00019178,2]
[374273518,1753263032195,-460.0,0.00019178,2]
[374273519,1753263032204,-0.35213862,0.00019178,2]
[374273520,1753263032216,-459.64786138,0.00019178,2]
[374273521,1753263032226,-460.0,0.00019178,2]
[374273522,1753263032235,-460.0,0.00019178,2]
[374273523,1753263032245,-460.0,0.00019178,2]
[374273524,1753263032254,-460.0,0.00019178,2]
[374273525,1753263032263,-460.0,0.00019178,2]
[374273526,1753263032272,-460.0,0.00019178,2]
[374273527,1753263032281,-460.0,0.00019178,2]
[374273528,1753263032290,-1267.73,0.00019178,2]
[374273529,1753263032299,-460.0,0.00019178,2]
[374273530,1753263032309,-2006.55,0.00019178,2]
[374273531,1753263032318,-500.0,0.00019178,2]
[374273532,1753263032328,-500.0,0.00019178,2]
[374273533,1753263032337,-1053.0,0.00019178,2]
[374273534,1753263032346,-3355.53,0.00019178,2]
[374273535,1753263032355,-460.0,0.00019178,2]
[374273536,1753263032364,-460.0,0.00019178,2]
[374273537,1753263032374,-260.94857747,0.00019351,2]
[374273538,1753263032383,-302.90913937,0.00019354,2]
[374273539,1753263032392,-460.0,0.0001945,2]
[374273540,1753263032401,-460.0,0.0001945,2]
[374273541,1753263032411,-460.0,0.0001945,2]
[374273543,1753263032420,-460.0,0.0001945,2]
[374273544,1753263032433,-460.0,0.0001945,2]
[374273545,1753263032443,-460.0,0.0001945,2]
[374273546,1753263032454,-804.40088758,0.00019451,2]
[374273547,1753263032465,-1850.62728302,0.00019451,2]
[374273548,1753263032478,-1850.62728302,0.00019451,2]
[374273549,1753263032488,-1850.62728302,0.00019451,2]
[374273550,1753263032498,-1850.62728302,0.00019451,2]
[374273551,1753263032508,-1850.62728302,0.00019451,2]
[374273552,1753263032518,-1850.62728302,0.00019451,2]
[374273553,1753263032527,-1850.62728302,0.00019451,2]
[374273554,1753263032537,-1850.62728302,0.00019451,2]
[374273555,1753263032547,-1850.62728302,0.00019451,2]
[374273556,1753263032556,-1850.62728302,0.00019451,2]
[374273557,1753263032566,-1850.62728302,0.00019451,2]
[374273558,1753263032575,-1850.62728302,0.00019451,2]
[374273559,1753263032585,-1850.62728302,0.00019451,2]
[374273560,1753263032594,-1850.62728302,0.00019451,2]
[374273561,1753263032603,-460.0,0.00019451,2]
[374273562,1753263032613,-460.0,0.00019451,2]
[374273563,1753263032627,-460.0,0.00019451,2]
[374273564,1753263032636,-460.0,0.00019451,2]
[374273565,1753263032646,-460.0,0.00019451,2]
[374273566,1753263032655,-460.0,0.00019451,2]
[374273567,1753263032666,-460.0,0.00019451,2]
[374273568,1753263032675,-460.0,0.00019451,2]
[374273569,1753263032688,-460.0,0.00019451,2]
[374273570,1753263032699,-460.0,0.00019451,2]
[374273571,1753263032708,-460.0,0.00019451,2]
[374273572,1753263032720,-460.0,0.00019451,2]
[374273573,1753263032732,-460.0,0.00019451,2]
[374273574,1753263032745,-460.0,0.00019451,2]
[374273575,1753263032758,-460.0,0.00019451,2]
[374273576,1753263032770,-460.0,0.00019451,2]
[374273577,1753263032782,-284.16,0.00019451,2]
[374273578,1753263032793,-460.0,0.00019451,2]
[374273579,1753263032803,-460.0,0.00019451,2]
[374273580,1753263032814,-460.0,0.00019451,2]
[374273581,1753263032827,-500.0,0.00019451,2]
[374273582,1753263032838,-460.0,0.00019451,2]
[374273583,1753263032849,-95.34923599,0.00019452,2]
[374273584,1753263032861,-460.0,0.00019452,2]
[374273585,1753263032873,-460.0,0.00019452,2]
[374273586,1753263032885,-460.0,0.00019452,2]
[374273587,1753263032897,-460.0,0.00019452,2]
[374273588,1753263032909,-460.0,0.00019452,2]
[374273589,1753263032920,-460.0,0.00019452,2]
[374273590,1753263032937,-378.52045676,0.00019452,2]
[374273591,1753263032949,-470.8224155,0.00019452,2]
[374273592,1753263032962,-460.0,0.00019452,2]
[374273593,1753263032974,-460.0,0.00019452,2]
[374273594,1753263032986,-467.47723467,0.00019452,2]
[374273595,1753263032997,-460.0,0.00019452,2]
[374273596,1753263033008,-1845.39,0.00019452,2]
[374273597,1753263033021,-465.23713607,0.00019452,2]
[374273598,1753263033032,-620.0,0.00019452,2]
[374273599,1753263033044,-675.93,0.00019452,2]
[374273600,1753263033056,-412.59319102,0.00019452,2]
[374273601,1753263033069,-460.0,0.00019452,2]
[374273602,1753263033082,-460.0,0.00019452,2]
[374273603,1753263033094,-460.0,0.00019452,2]
[374273604,1753263033105,-1524.84,0.00019452,2]
[374273605,1753263033116,-460.0,0.00019452,2]
[374273606,1753263033127,-577.66831075,0.00019452,2]
[374273607,1753263033137,-460.0,0.00019452,2]
[374273608,1753263033148,-797.63,0.00019452,2]
[374273609,1753263033161,-460.0,0.00019452,2]
[374273610,1753263033172,-1493.61,0.00019452,2]
[374273611,1753263033187,-460.0,0.00019452,2]
[374273612,1753263033198,-460.0,0.00019452,2]
[374273613,1753263033210,-460.0,0.00019452,2]
[374273614,1753263033223,-601.6759021,0.00019452,2]
[374273615,1753263033236,-918.54,0.00019452,2]
[374273616,1753263033248,-460.0,0.00019452,2]
[374273617,1753263033260,-460.0,0.00019452,2]
[374273618,1753263033272,-1445.62,0.00019452,2]
[374273619,1753263033284,-460.0,0.00019452,2]
[374273620,1753263033297,-460.0,0.00019452,2]
[374273621,1753263033309,-460.0,0.00019452,2]
[374273622,1753263033322,-460.0,0.00019452,2]
[374273623,1753263033334,-460.0,0.00019452,2]
[374273624,1753263033345,-460.0,0.00019452,2]
[374273625,1753263033357,-464.88,0.00019452,2]
[374273626,1753263033367,-460.0,0.00019452,2]
[374273627,1753263033378,-460.0,0.00019452,2]
[374273628,1753263033390,-460.0,0.00019452,2]
[374273629,1753263033402,-460.0,0.00019452,2]
[374273630,1753263033414,-1423.3,0.00019452,2]
[374273631,1753263033428,-460.0,0.00019452,2]
[374273632,1753263033440,-460.0,0.00019452,2]
[374273633,1753263033452,-460.0,0.00019452,2]
[374273634,1753263033462,-460.0,0.00019452,2]
[374273635,1753263033472,-460.0,0.00019452,2]
[374273636,1753263033483,-460.0,0.00019452,2]
[374273637,1753263033494,-1267.73,0.00019452,2]
[374273638,1753263033505,-2006.55,0.00019452,2]
[374273639,1753263033517,-1053.0,0.00019452,2]
[374273640,1753263033529,-3355.53,0.00019452,2]
[374273641,1753263033540,-466.47559134,0.00019452,2]
[374273642,1753263033551,-500.0,0.00019452,2]
[374273643,1753263033562,-302.90913937,0.00019547,2]
[374273644,1753263033572,-558.81630607,0.0001967,2]
[374273645,1753263033583,-231.57,0.00019703,2]
[374273646,1753263033594,-157.16,0.00019716,3]
[374273647,1753263033604,-471.52,0.00019716,3]
[374273648,1753263033619,-1329.22,0.00019722,2]
[374273649,1753263033630,-766.09,0.00019722,2]
[374273650,1753263033641,-460.0,0.00019724,2]
[374273651,1753263033652,-460.0,0.00019724,2]
[374273652,1753263033663,-460.0,0.00019724,2]
[374273653,1753263033675,-292.31533465,0.00019725,2]
[374273654,1753263033688,-460.0,0.00019725,2]
[374273655,1753263033698,-460.0,0.00019725,2]
[374273656,1753263033917,-460.0,0.00019725,2]
[374273657,1753263033928,-460.0,0.00019725,2]
[374273658,1753263033939,-460.0,0.00019725,2]
[374273659,1753263033950,-460.0,0.00019725,2]
[374273660,1753263033960,-331.41952763,0.00019725,2]
[374273676,1753263037806,-460.89487117,0.00019178,2]
[374273677,1753263037817,-294.99488053,0.00019452,2]
[374273680,1753263037863,-165.00511947,0.00019452,2]
[374273681,1753263037876,-128.58047237,0.00019725,2]
[374273682,1753263037889,-391.50564816,0.00019725,2]
[374273683,1753263037915,-68.49435184,0.00019725,2]
[374273684,1753263037926,-460.0,0.00019725,2]
[374273685,1753263037938,-460.0,0.00019725,2]
[374273686,1753263037948,-460.0,0.00019725,2]
[374273687,1753263037957,-460.0,0.00019725,2]
[374273688,1753263037967,-460.0,0.00019725,2]
[374273689,1753263037977,-460.0,0.00019725,2]
[374273690,1753263037986,-460.0,0.00019725,2]
[374273691,1753263037996,-460.0,0.00019725,2]
[374273692,1753263038192,-460.0,0.00019725,2]
[374273693,1753263038202,-460.0,0.00019725,2]
[374273694,1753263038211,-460.0,0.00019725,2]
[374273695,1753263038220,-460.0,0.00019725,2]
[374273696,1753263038229,-460.0,0.00019725,2]
[374273697,1753263038238,-460.0,0.00019725,2]
[374273698,1753263038248,-460.0,0.00019725,2]
[374273699,1753263038258,-460.0,0.00019725,2]
[374273700,1753263038267,-460.0,0.00019725,2]
[374273701,1753263038277,-460.0,0.00019725,2]
[374273702,1753263038290,-460.0,0.00019725,2]
[374273703,1753263038300,-460.0,0.00019725,2]
[374273704,1753263038310,-500.0,0.00019725,2]
[374273705,1753263038319,-460.0,0.00019725,2]
[374273706,1753263038328,-518.92,0.00019726,2]
[374273707,1753263038337,-460.0,0.00019726,2]
[374273708,1753263038346,-460.0,0.00019726,2]
[374273709,1753263038355,-460.0,0.00019726,2]
[374273710,1753263038364,-460.0,0.00019726,2]
[374273711,1753263038373,-1845.39,0.00019726,2]
[374273712,1753263038382,-620.0,0.00019726,2]
[374273713,1753263038391,-675.93,0.00019726,2]
[374273714,1753263038400,-460.0,0.00019726,2]
[374273715,1753263038409,-460.0,0.00019726,2]
[374273716,1753263038419,-460.0,0.00019726,2]
[374273717,1753263038427,-1524.84,0.00019726,2]
[374273718,1753263038440,-460.0,0.00019726,2]
[374273719,1753263038449,-797.63,0.00019726,2]
[374273720,1753263038458,-460.0,0.00019726,2]
[374273721,1753263038468,-1493.61,0.00019726,2]
[374273722,1753263038477,-460.0,0.00019726,2]
[374273723,1753263038487,-465.77190469,0.00019726,2]
[374273724,1753263038496,-460.0,0.00019726,2]
[374273725,1753263038506,-918.54,0.00019726,2]
[374273726,1753263038515,-460.0,0.00019726,2]
[374273727,1753263038524,-1445.62,0.00019726,2]
[374273728,1753263038533,-460.0,0.00019726,2]
[374273729,1753263038543,-460.0,0.00019726,2]
[374273730,1753263038552,-460.0,0.00019726,2]
[374273731,1753263038562,-460.0,0.00019726,2]
[374273732,1753263038571,-464.88,0.00019726,2]
[374273733,1753263038580,-460.0,0.00019726,2]
[374273734,1753263038589,-323.13,0.00019726,2]
[374273735,1753263038598,-460.0,0.00019726,2]
[374273736,1753263038608,-460.0,0.00019726,2]
[374273737,1753263038619,-1423.3,0.00019726,2]
[374273738,1753263038628,-395.45902363,0.00019726,2]
[374273739,1753263038637,-460.0,0.00019726,2]
[374273740,1753263038646,-484.72,0.00019726,2]
[374273741,1753263038657,-460.0,0.00019726,2]
[374273742,1753263038665,-460.0,0.00019726,2]
[374273743,1753263038675,-460.0,0.00019726,2]
[374273744,1753263038687,-1267.73,0.00019726,2]
[374273745,1753263038699,-2006.55,0.00019726,2]
[374273746,1753263038708,-1053.0,0.00019726,2]
[374273747,1753263038717,-3355.53,0.00019726,2]
[374273748,1753263038726,-598.79,0.00019726,2]
[374273749,1753263038735,-500.0,0.00019726,2]
[374273750,1753263038744,-151.87893913,0.00019741,2]
[374273751,1753263038754,-340.40479011,0.00019754,2]
[374273752,1753263038763,-987.3024724,0.00019896,2]
[374273753,1753263038772,-1025.92947999,0.000199,2]
[374273754,1753263038782,-506.51457,0.00019912,2]
[374273755,1753263038791,-171.57,0.0001999,3]
[374273756,1753263038800,-514.75,0.0001999,3]
[374273757,1753263038809,-1329.22,0.00019996,2]
[374273758,1753263038818,-766.09,0.00019996,2]
[374273759,1753263038827,-265.2791197,0.00019997,2]
[374273760,1753263038836,-178.02,0.00019998,2]
[374273761,1753263038845,-460.0,0.00019998,2]
[374273762,1753263038856,-460.0,0.00019998,2]
[374273763,1753263038866,-460.0,0.00019999,2]
[374273764,1753263038875,-460.0,0.00019999,2]
[374273765,1753263038884,-460.0,0.00019999,2]
[374273766,1753263038894,-460.0,0.00019999,2]
[374273767,1753263038903,-460.0,0.00019999,2]
[374273768,1753263038913,-460.0,0.00019999,2]
[374273769,1753263038922,-460.0,0.00019999,2]
[374273770,1753263038933,-552.64,0.00019999,2]
[374273771,1753263038942,-460.0,0.00019999,2]
[374273772,1753263038951,-412.22410789,0.00019999,2]
[374273773,1753263038960,-460.0,0.00019999,2]
[374273774,1753263038971,-460.0,0.00019999,2]
[374273775,1753263038982,-460.0,0.00019999,2]
[374273776,1753263038992,-460.0,0.00019999,2]
[374273777,1753263039001,-460.0,0.00019999,2]
[374273778,1753263039011,-460.0,0.00019999,2]
[374273779,1753263039020,-460.0,0.00019999,2]
[374273780,1753263039030,-460.0,0.00019999,2]
[374273781,1753263039039,-460.0,0.00019999,2]
[374273782,1753263039048,-460.0,0.00019999,2]
[374273783,1753263039057,-460.0,0.00019999,2]
[374273784,1753263039066,-460.0,0.00019999,2]
[374273785,1753263039075,-460.0,0.00019999,2]
[374273786,1753263039085,-460.0,0.00019999,2]
[374273787,1753263039095,-460.0,0.00019999,2]
[374273788,1753263039104,-460.0,0.00019999,2]
[374273789,1753263039113,-500.0,0.00019999,2]
[374273790,1753263039122,-460.0,0.00019999,2]
[374273791,1753263039131,-460.0,0.0002,2]
[374273793,1753263039140,-378.87124963,0.0002,2]
[374273795,1753263039149,-460.0,0.0002,2]
[374273796,1753263039158,-460.0,0.0002,2]
[374273797,1753263039168,-1845.39,0.0002,2]
[374273798,1753263039177,-620.0,0.0002,2]
[374273799,1753263039190,-675.93,0.0002,2]
[374273801,1753263039199,-1524.84,0.0002,2]
[374273803,1753263039208,-797.63,0.0002,2]
[374273806,1753263039217,-460.0,0.0002,2]
[374273808,1753263039227,-1493.61,0.0002,2]
[374273810,1753263039236,-460.0,0.0002,2]
[374273811,1753263039245,-460.0,0.0002,2]
[374273813,1753263039254,-918.54,0.0002,2]
[374273816,1753263039264,-329.26982659,0.0002,2]
[374273818,1753263039273,-460.0,0.0002,2]
[374273819,1753263039282,-1445.62,0.0002,2]
[374273821,1753263039291,-460.0,0.0002,2]
[374273823,1753263039300,-460.0,0.0002,2]
[374273825,1753263039309,-464.88,0.0002,2]
[374273827,1753263039318,-9736.49436581,0.0002,2]
[374273829,1753263039328,-460.0,0.0002,2]
[374273831,1753263039337,-460.0,0.0002,2]
[374273833,1753263039346,-1423.3,0.0002,2]
[374273835,1753263039356,-460.0,0.0002,2]
[374273837,1753263039365,-460.0,0.0002,2]
[374273839,1753263039374,-460.0,0.0002,2]
[374273841,1753263039383,-460.0,0.0002,2]
[374273843,1753263039392,-1267.73,0.0002,2]
[374273845,1753263039401,-2006.55,0.0002,2]
[374273848,1753263039410,-1053.0,0.0002,2]
[374273850,1753263039419,-3355.53,0.0002,2]
[374273852,1753263039428,-500.0,0.00020061,2]
[374273854,1753263039439,-500.0,0.00020081,2]
[374273856,1753263039448,-1025.92947994,0.00020107,2]
[374273858,1753263039457,-260.94857746,0.00020174,2]
[374273860,1753263039466,-500.0,0.00020186,2]
[374273862,1753263039475,-404.8736645,0.00020186,2]
[374273863,1753263039484,-411.334156,0.00020187,2]
[374273865,1753263039493,-500.0,0.00020218,2]
[374273868,1753263039503,-500.0,0.00020218,2]
[374273870,1753263039512,-242.83737585,0.00020268,2]
[374273874,1753263039522,-1329.22,0.0002027,2]
[374273877,1753263039532,-766.09,0.0002027,2]
[374273880,1753263039541,-375.65423193,0.00020272,2]
[374273883,1753263039551,-500.0,0.00020272,2]
[374273886,1753263039560,-246.64489417,0.00020272,2]
[374273889,1753263039569,-460.0,0.00020273,2]
[374273892,1753263039578,-460.0,0.00020273,2]
[374273895,1753263039587,-455.24924495,0.00020273,2]
[374273898,1753263039596,-460.0,0.00020273,2]
[374273901,1753263039606,-1845.39,0.00020273,2]
[374273904,1753263039615,-620.0,0.00020273,2]
[374273907,1753263039629,-460.0,0.00020273,2]
[374273910,1753263039638,-213.86,0.00020273,2]
[374273913,1753263039647,-460.0,0.00020273,2]
[374273916,1753263039656,-675.93,0.00020273,2]
[374273919,1753263039665,-460.0,0.00020273,2]
[374273922,1753263039674,-460.0,0.00020273,2]
[374273925,1753263039684,-1524.84,0.00020273,2]
[374273928,1753263039694,-460.0,0.00020273,2]
[374273931,1753263039703,-797.63,0.00020273,2]
[374273934,1753263039713,-460.0,0.00020273,2]
[374273937,1753263039722,-460.0,0.00020273,2]
[374273941,1753263039732,-1493.61,0.00020273,2]
[374273944,1753263039741,-460.0,0.00020273,2]
[374273947,1753263039751,-460.0,0.00020273,2]
[374273950,1753263039759,-242.4,0.00020273,2]
[374273953,1753263039769,-918.54,0.00020273,2]
[374273955,1753263039778,-460.0,0.00020273,2]
[374273957,1753263039787,-460.0,0.00020273,2]
[374273959,1753263039796,-1445.62,0.00020273,2]
[374273962,1753263039805,-460.0,0.00020273,2]
[374273965,1753263039814,-460.0,0.00020273,2]
[374273968,1753263039823,-460.0,0.00020273,2]
[374273971,1753263039833,-460.0,0.00020273,2]
[374273974,1753263039843,-460.0,0.00020273,2]
[374273977,1753263039852,-464.88,0.00020273,2]
[374273980,1753263039861,-460.0,0.00020273,2]
[374273983,1753263039871,-460.0,0.00020273,2]
[374273986,1753263039880,-460.0,0.00020273,2]
[374273989,1753263039889,-460.0,0.00020273,2]
[374273991,1753263039898,-1423.3,0.00020273,2]
[374273994,1753263039907,-460.0,0.00020273,2]
[374273998,1753263039916,-460.0,0.00020273,2]
[374274001,1753263039925,-191.30406378,0.00020273,2]
[374274003,1753263039937,-460.0,0.00020273,2]
[374274006,1753263039946,-460.0,0.00020273,2]
[374274010,1753263039956,-318.84,0.00020273,2]
[374274013,1753263039965,-460.0,0.00020273,2]
[374274016,1753263039974,-460.0,0.00020273,2]
[374274019,1753263039983,-460.0,0.00020273,2]
[374274022,1753263039993,-1267.73,0.00020273,2]
[374274025,1753263040002,-2006.55,0.00020273,2]
[374274028,1753263040012,-1053.0,0.00020273,2]
[374274030,1753263040021,-3355.53,0.00020273,2]
[374274033,1753263040030,-606.52421361,0.00020273,2]
[374274036,1753263040039,-1025.92947994,0.00020314,3]
[374274039,1753263040049,-160.0,0.00020401,2]
[374274042,1753263040058,-160.0,0.00020401,2]
[374274045,1753263040067,-160.0,0.00020401,2]
[374274048,1753263040077,-231.11583447,0.00020401,2]
[374274052,1753263040086,-160.0,0.00020401,2]
[374274054,1753263040095,-214.67886746,0.00020401,2]
[374274057,1753263040105,-840.06856235,0.00020401,2]
[374274060,1753263040114,-215.84326551,0.00020401,2]
[374274063,1753263040124,-160.0,0.00020401,2]
[374274066,1753263040133,-160.0,0.00020401,2]
[374274069,1753263040143,-160.0,0.00020401,2]
[374274072,1753263040152,-160.0,0.00020401,2]
[374274075,1753263040161,-12622.36869388,0.00020401,2]
[374274078,1753263040171,-476.696448,0.00020402,2]
[374274081,1753263040180,-160.0,0.00020402,2]
[374274084,1753263040194,-500.0,0.00020446,2]
[374274087,1753263040203,-4635.37935006,0.00020447,2]
[374274090,1753263040212,-214.67886746,0.00020447,3]
[374274093,1753263040221,-476.696448,0.00020447,3]
[374274096,1753263040230,-12622.36869388,0.00020447,3]
[374274099,1753263040240,-1025.92947994,0.00020521,3]
[374274102,1753263040249,-1329.22,0.00020544,2]
[374274105,1753263040259,-766.09,0.00020544,2]
[374274108,1753263040268,-500.0,0.00020546,2]
[374274111,1753263040278,-460.0,0.00020547,2]
[374274114,1753263040288,-460.0,0.00020547,2]
[374274117,1753263040297,-1845.39,0.00020547,2]
[374274120,1753263040306,-620.0,0.00020547,2]
[374274123,1753263040315,-460.0,0.00020547,2]
[374274126,1753263040325,-460.0,0.00020547,2]
[374274129,1753263040334,-675.93,0.00020547,2]
[374274132,1753263040344,-460.0,0.00020547,2]
[374274134,1753263040353,-460.0,0.00020547,2]
[374274135,1753263040362,-1524.84,0.00020547,2]
[374274139,1753263040372,-460.0,0.00020547,2]
[374274143,1753263040383,-797.63,0.00020547,2]
[374274146,1753263040393,-460.0,0.00020547,2]
[374274149,1753263040402,-460.0,0.00020547,2]
[374274152,1753263040412,-1493.61,0.00020547,2]
[374274155,1753263040421,-460.0,0.00020547,2]
[374274158,1753263040429,-432.28667235,0.00020547,2]
[374274161,1753263040441,-918.54,0.00020547,2]
[374274163,1753263040450,-460.0,0.00020547,2]
[374274166,1753263040459,-460.0,0.00020547,2]
[374274169,1753263040468,-1445.62,0.00020547,2]
[374274172,1753263040477,-460.0,0.00020547,2]
[374274175,1753263040486,-460.0,0.00020547,2]
[374274178,1753263040496,-555.41,0.00020547,2]
[374274181,1753263040505,-460.0,0.00020547,2]
[374274184,1753263040514,-554.27,0.00020547,2]
[374274187,1753263040523,-464.88,0.00020547,2]
[374274190,1753263040532,-460.0,0.00020547,2]
[374274193,1753263040542,-460.0,0.00020547,2]
[374274196,1753263040551,-460.0,0.00020547,2]
[374274199,1753263040560,-460.0,0.00020547,2]
[374274202,1753263040571,-1423.3,0.00020547,2]
[374274205,1753263040580,-460.0,0.00020547,2]
[374274208,1753263040590,-460.0,0.00020547,2]
[374274211,1753263040599,-460.0,0.00020547,2]
[374274214,1753263040608,-460.0,0.00020547,2]
[374274217,1753263040618,-460.0,0.00020547,2]
[374274220,1753263040630,-460.0,0.00020547,2]
[374274223,1753263040639,-410.38,0.00020547,2]
[374274226,1753263040647,-2006.55,0.00020547,2]
[374274229,1753263040657,-1267.73,0.00020547,2]
[374274230,1753263040666,-1053.0,0.00020547,2]
[374274233,1753263040676,-3355.53,0.00020547,2]
[374274236,1753263040686,-1000.0,0.00020609,2]
[374274239,1753263040695,-160.0,0.00020665,2]
[374274242,1753263040706,-398.652,0.00020666,2]
[374274245,1753263040715,-12364.33000242,0.00020691,3]
[374274248,1753263040724,-1025.92947994,0.00020728,3]
[374274251,1753263040733,-1000.0,0.00020766,2]
[374274255,1753263040743,-1000.0,0.00020766,2]
[374274257,1753263040752,-500.0,0.00020789,2]
[374274259,1753263040762,-151.0,0.00020791,2]
[374274261,1753263040771,-151.0,0.00020791,2]
[374274263,1753263040780,-151.0,0.00020791,2]
[374274265,1753263040789,-215.0738,0.00020791,2]
[374274266,1753263040798,-151.0,0.00020791,2]
[374274268,1753263040807,-151.0,0.00020791,2]
[374274270,1753263040816,-151.0,0.00020791,2]
[374274273,1753263040826,-151.0,0.00020791,2]
[374274275,1753263040835,-151.0,0.00020791,2]
[374274277,1753263040844,-151.0,0.00020791,2]
[374274278,1753263040853,-151.0,0.00020791,2]
[374274279,1753263040862,-151.0,0.00020791,2]
[374274280,1753263040871,-151.0,0.00020791,2]